bitfinex-derivatives/quotes_BTCF0:USTF0_20251215
["timestamp","ask_amount","ask_price","bid_price","bid_amount"]
[1765811208261,0.19,87970.0,87941.0,0.06936]
[1765811208457,0.0113692,87958.0,87938.0,0.00227434]
[1765811208768,0.09,87958.0,87946.0,0.0113707]
[1765811208960,0.0113694,87957.0,87946.0,0.0113707]
[1765811209161,0.00010468,87956.0,87938.0,0.00227434]
[1765811209357,0.04010468,87956.0,87938.0,0.00227434]
[1765811209562,0.04010468,87956.0,87939.0,0.11369385]
[1765811209563,0.0113703,87951.0,87939.0,0.11369385]
[1765811209764,0.00010468,87956.0,87945.0,0.0113709]
[1765811209959,0.17010468,87956.0,87938.0,0.00227434]
[1765811210161,0.04010468,87956.0,87954.0,0.0113696]
[1765811210672,0.00010468,87956.0,87954.0,0.0113696]
[1765811211268,0.00010468,87956.0,87955.0,0.7216]
[1765811212176,0.01147418,87956.0,87955.0,0.7216]
[1765811212366,0.06147418,87956.0,87955.0,0.3608]
[1765811212674,0.04210468,87956.0,87955.0,0.3608]
[1765811212871,0.00210468,87956.0,87955.0,0.3608]
[1765811213172,0.18210468,87956.0,87955.0,0.3608]
[1765811213377,0.05210468,87956.0,87955.0,0.3608]
[1765811213571,0.00210468,87956.0,87955.0,0.3608]
[1765811213876,0.16210468,87956.0,87955.0,0.3608]
[1765811214073,0.04210468,87956.0,87955.0,0.3608]
[1765811214274,0.00210468,87956.0,87955.0,0.3721696]
[1765811214579,0.04210468,87956.0,87955.0,0.3608]
[1765811215080,0.00210468,87956.0,87955.0,0.3608]
[1765811215373,0.04210468,87956.0,87955.0,0.3608]
[1765811215683,0.05210468,87956.0,87955.0,0.3608]
[1765811215976,0.00210468,87956.0,87955.0,0.3608]
[1765811216177,0.00210468,87956.0,87942.0,0.3608]
[1765811216178,0.0113712,87943.0,87942.0,0.3608]
[1765811216380,0.0113717,87939.0,87938.0,0.00227434]
[1765811216671,0.0113733,87927.0,87922.0,0.3608]
[1765811216870,0.3608,87946.0,87922.0,0.3608]
[1765811216871,0.01154306,87933.0,87922.0,0.3608]
[1765811217075,0.19154306,87933.0,87931.0,0.3608]
[1765811217274,0.01154306,87933.0,87931.0,0.3608]
[1765811217580,0.05017056,87933.0,87932.0,0.0113726]
[1765811217770,0.0113726,87932.0,87931.0,0.3608]
[1765811217970,0.0613726,87932.0,87931.0,0.3608]
[1765811218174,0.00017056,87933.0,87932.0,0.0113726]
[1765811219669,0.00017056,87933.0,87932.0,0.18186133]
[1765811219866,0.00010468,87956.0,87953.0,0.0113699]
[1765811220072,0.00010468,87956.0,87955.0,0.3608]
[1765811220073,0.07010468,87956.0,87955.0,0.3608]
[1765811220278,0.07010468,87956.0,87927.0,0.0113732]
[1765811220279,0.0113733,87927.0,87925.0,0.21258]
[1765811220465,0.3608,87931.0,87929.0,0.011373]
[1765811220663,0.3608,87931.0,87925.0,0.21258]
[1765811220664,0.00010468,87956.0,87950.0,0.21258]
[1765811220875,0.00010468,87956.0,87930.0,0.0113728]
[1765811220876,0.011371,87945.0,87944.0,0.00017056]
[1765811221073,0.011371,87945.0,87916.0,1.42108]
[1765811221074,0.0113739,87922.0,87918.0,0.3608]
[1765811221273,0.0113767,87900.0,87889.0,0.0113781]
[1765811221473,0.0113767,87900.0,87880.0,0.21258]
[1765811221474,0.0113767,87900.0,87881.0,0.0113792]
[1765811221678,0.0113767,87900.0,87890.0,0.0113779]
[1765811221868,0.0113743,87919.0,87899.0,0.2239569]
[1765811222069,0.00017056,87918.0,87899.0,0.21258]
[1765811222269,0.0113766,87901.0,87899.0,0.21258]
[1765811222485,0.2113766,87901.0,87899.0,0.21258]
[1765811222772,0.2113766,87901.0,87884.0,0.68356]
[1765811222773,0.01138,87875.0,87874.0,0.00012301]
[1765811222975,0.0113821,87859.0,87843.0,0.0113841]
[1765811223193,0.1913821,87859.0,87838.0,0.0113847]
[1765811223375,0.1913821,87859.0,87833.0,0.0113853]
[1765811223581,0.0114947,87875.0,87832.0,0.015039]
[1765811223582,0.0001147,87875.0,87832.0,0.015039]
[1765811223774,0.0001147,87875.0,87853.0,0.0113828]
[1765811223775,0.0113815,87863.0,87853.0,0.0113828]
[1765811224077,0.0813815,87863.0,87846.0,0.0113837]
[1765811224381,0.011381,87868.0,87859.0,0.0113821]
[1765811224584,0.011381,87868.0,87832.0,0.01495808]
[1765811224585,0.0113818,87861.0,87844.0,0.0113839]
[1765811224876,0.0113818,87861.0,87832.0,0.01495808]
[1765811224877,0.2113818,87861.0,87832.0,0.01495808]
[1765811225078,0.0113818,87861.0,87832.0,0.01495808]
[1765811225280,0.0011147,87875.0,87859.0,0.28388345]
[1765811225485,0.0211147,87875.0,87859.0,0.28388345]
[1765811225682,0.03,87889.0,87888.0,0.0113783]
[1765811225878,1.4329303,87950.0,87888.0,0.0113783]
[1765811225879,0.0113741,87921.0,87906.0,0.20681]
[1765811226177,0.0113741,87921.0,87916.0,0.0113746]
[1765811226178,0.18,87921.0,87916.0,0.0113746]
[1765811226379,0.41905618,87970.0,87932.0,0.20681]
[1765811226684,0.05693519,87969.0,87932.0,0.20681]
[1765811226874,0.0113712,87943.0,87942.0,0.00017055]
[1765811227071,0.0113708,87946.0,87942.0,0.00017055]
[1765811227270,0.03,87946.0,87943.0,0.0113712]
[1765811227469,0.00017055,87960.0,87942.0,0.00017055]
[1765811227671,0.0113707,87947.0,87942.0,0.00017055]
[1765811227874,0.07,87947.0,87942.0,0.01154185]
[1765811228080,0.07,87947.0,87942.0,0.00017055]
[1765811228279,0.07,87947.0,87943.0,0.0113712]
[1765811228476,0.0113712,87943.0,87942.0,0.00017055]
[1765811228781,0.00017055,87960.0,87942.0,0.00017055]
[1765811228782,0.0113711,87944.0,87942.0,0.00017055]
[1765811228972,0.00017055,87960.0,87942.0,0.00017055]
[1765811229178,0.0113709,87946.0,87942.0,0.00017055]
[1765811229386,0.0113701,87952.0,87942.0,0.01154175]
[1765811229683,0.03,87952.0,87947.0,0.0113706]
[1765811230086,0.03,87952.0,87942.0,0.00017055]
[1765811230272,0.0113708,87946.0,87942.0,0.00017055]
[1765811230473,0.011371,87945.0,87942.0,0.00017055]
[1765811230678,0.061371,87945.0,87942.0,0.00017055]
[1765811231083,0.00017055,87960.0,87943.0,0.0113711]
[1765811231385,0.0113697,87955.0,87948.0,0.20681]
[1765811231684,0.00017055,87960.0,87959.0,0.0113691]
[1765811232189,0.0113691,87959.0,87952.0,0.01137]
[1765811232383,0.0113701,87951.0,87948.0,0.20681]
[1765811232688,0.0113703,87950.0,87948.0,0.20681]
[1765811232883,0.0913703,87950.0,87948.0,0.20681]
[1765811233276,0.0113697,87955.0,87948.0,0.20681]
[1765811233474,0.00017055,87960.0,87959.0,0.0113691]
[1765811233682,9.549e-05,87969.0,87966.0,0.0113681]
[1765811233876,9.549e-05,87969.0,87948.0,0.20681]
[1765811233877,0.03009549,87969.0,87948.0,0.20681]
[1765811234078,0.03009549,87969.0,87957.0,0.0113693]
[1765811234079,0.011368,87968.0,87957.0,0.0113693]
[1765811234275,0.03,87968.0,87964.0,0.0113684]
[1765811234582,0.0113704,87950.0,87948.0,0.20681]
[1765811234783,0.003,87955.0,87952.0,0.0113699]
[1765811234984,0.003,87955.0,87949.0,0.11368028]
[1765811235184,0.0113702,87951.0,87948.0,0.20681]
[1765811235380,0.1013702,87951.0,87948.0,0.20681]
[1765811236094,0.08,87951.0,87948.0,0.20681]
[1765811236284,0.0113701,87952.0,87948.0,0.20681]
[1765811236480,9.549e-05,87969.0,87948.0,0.20681]
[1765811236682,0.07009549,87969.0,87949.0,0.11370161]
[1765811236990,0.18009549,87969.0,87948.0,0.20681]
[1765811237383,9.549e-05,87969.0,87950.0,0.11370096]
[1765811237684,0.011369,87960.0,87948.0,0.20681]
[1765811237888,9.549e-05,87969.0,87948.0,0.20681]
[1765811238082,0.18009549,87969.0,87964.0,0.0113684]
[1765811238281,0.18009549,87969.0,87968.0,0.0113679]
[1765811238282,0.01009549,87969.0,87968.0,0.0113679]
[1765811238484,9.549e-05,87969.0,87968.0,0.0113679]
[1765811238983,5.5e-07,87975.0,87974.0,0.0113672]
[1765811239192,0.0113618,88016.0,88000.0,0.20681]
[1765811239387,0.18,88016.0,88000.0,0.20681]
[1765811239689,0.0113636,88002.0,88000.0,0.20681]
[1765811239990,0.0113636,88002.0,87975.0,0.95833]
[1765811239991,0.00012056,88001.0,87997.0,0.0113642]
[1765811240188,0.10012056,88001.0,87997.0,0.0113642]
[1765811240384,0.10012056,88001.0,87996.0,0.0113643]
[1765811240588,0.0113648,87993.0,87990.0,0.00017043]
[1765811240778,0.1513648,87993.0,87990.0,0.00017043]
[1765811241288,0.15112483,87993.0,87990.0,0.00017043]
[1765811241790,0.14,87993.0,87968.0,0.00014201]
[1765811242088,0.0113667,87978.0,87970.0,0.3608]
[1765811242283,0.0113667,87978.0,87968.0,0.00014201]
[1765811242484,0.3608,87976.0,87968.0,0.00014201]
[1765811242682,0.3608,87976.0,87973.0,0.0113673]
[1765811242987,0.00017043,87984.0,87976.0,0.0113669]
[1765811243191,0.00017043,87984.0,87980.0,0.0113663]
[1765811243880,0.003,87993.0,87976.0,0.3608]
[1765811244192,0.033,87993.0,87984.0,0.0113659]
[1765811244395,0.033,87993.0,87976.0,0.3608]
[1765811244690,0.03,87993.0,87990.0,0.0113651]
[1765811245085,0.00017043,88000.0,87987.0,0.3608]
[1765811245288,0.03017043,88000.0,87992.0,0.0113648]
[1765811245485,0.03017043,88000.0,87996.0,0.0113643]
[1765811245687,0.00017043,88000.0,87996.0,0.3721643]
[1765811245886,0.37216,88030.0,88010.0,0.20681]
[1765811246082,0.3608,88030.0,88025.0,0.0113605]
[1765811246287,0.06,88030.0,88025.0,0.0113605]
[1765811246493,0.06,88030.0,88023.0,0.3608]
[1765811246699,0.3608,88025.0,88012.0,0.0113621]
[1765811246886,8.033e-05,88024.0,88020.0,0.0113611]
[1765811247086,8.033e-05,88024.0,88018.0,0.3608]
[1765811247287,8.033e-05,88024.0,88010.0,0.56778043]
[1765811247484,0.0113621,88014.0,88010.0,0.56778043]
[1765811247688,0.0113624,88011.0,88010.0,0.00017043]
[1765811247885,0.4321624,88011.0,88010.0,0.00017043]
[1765811248188,0.13,88011.0,88010.0,0.00017043]
[1765811248388,0.5021624,88011.0,88010.0,0.00017043]
[1765811248594,0.0113637,88001.0,88000.0,0.20681]
[1765811248797,0.4321637,88001.0,88000.0,0.20681]
[1765811249095,0.011364,87999.0,87972.0,0.3608]
[1765811249405,0.011364,87999.0,87970.0,1.42112]
[1765811249406,0.0113669,87976.0,87970.0,1.42112]
[1765811249587,0.18146972,87976.0,87967.0,0.00017043]
[1765811249787,0.0113678,87969.0,87967.0,0.00017043]
[1765811249986,0.13112784,87969.0,87967.0,0.00017043]
[1765811250593,0.0113701,87952.0,87945.0,0.3608]
[1765811250791,0.3608,87955.0,87945.0,0.3608]
[1765811250984,0.01137,87952.0,87945.0,0.3608]
[1765811251190,0.01137,87952.0,87941.0,0.74916]
[1765811251493,0.01137,87952.0,87941.0,0.74933053]
[1765811251685,0.3608,87953.0,87941.0,0.74933053]
[1765811251889,0.3608,87953.0,87948.0,0.2181804]
[1765811252095,0.00017053,87959.0,87948.0,0.20681]
[1765811252294,0.03017053,87959.0,87949.0,0.0113704]
[1765811252494,0.03017053,87959.0,87948.0,0.20681]
[1765811253390,0.0113698,87954.0,87948.0,0.20681]
[1765811253589,0.3721698,87955.0,87948.0,0.20681]
[1765811253784,0.0113703,87950.0,87948.0,0.20681]
[1765811253990,0.0113698,87954.0,87948.0,0.20681]
[1765811254192,0.0113713,87942.0,87941.0,0.00017053]
[1765811254499,0.4621713,87942.0,87941.0,0.00017053]
[1765811254692,0.3721713,87942.0,87941.0,0.00017053]
[1765811254892,0.43228305,87942.0,87941.0,0.00017053]
[1765811255198,0.0113725,87933.0,87928.0,0.3608]
[1765811255590,0.0113725,87933.0,87924.0,0.00014508]
[1765811255591,0.1313725,87933.0,87924.0,0.00014508]
[1765811255895,0.4921725,87933.0,87924.0,0.00014508]
[1765811256099,0.3721725,87933.0,87924.0,0.00031561]
[1765811256295,0.5721725,87933.0,87924.0,0.00031561]
[1765811256504,0.4621725,87933.0,87924.0,0.00031561]
[1765811256699,0.3608,87933.0,87929.0,0.011373]
[1765811257207,0.3608,87933.0,87924.0,0.00031561]
[1765811257589,0.00017053,87941.0,87924.0,0.00031561]
[1765811257793,0.00017053,87941.0,87932.0,0.3608]
[1765811257794,0.0113725,87933.0,87932.0,0.3608]
[1765811258097,0.0113721,87937.0,87932.0,0.3608]
[1765811258301,0.00017053,87941.0,87938.0,0.0113718]
[1765811258491,0.0113692,87959.0,87955.0,0.0113696]
[1765811258694,0.0113692,87959.0,87952.0,0.20637]
[1765811258695,0.0113716,87940.0,87939.0,0.16988209]
[1765811258893,0.011371,87945.0,87925.0,0.23736]
[1765811259091,0.0113679,87969.0,87933.0,0.11371454]
[1765811259092,0.0113689,87961.0,87933.0,0.11371454]
[1765811259295,0.0113704,87950.0,87947.0,0.0113706]
[1765811259495,0.00012264,87949.0,87940.0,0.00017053]
[1765811259793,0.00012264,87949.0,87945.0,0.0113708]
[1765811260491,5.3e-07,87957.0,87956.0,0.0113695]
[1765811260691,5.3e-07,87957.0,87952.0,0.20637]
[1765811260692,0.2,87957.0,87952.0,0.20637]
[1765811260894,0.0113698,87954.0,87952.0,0.20637]
[1765811261102,0.0113693,87958.0,87953.0,0.0113699]
[1765811261302,0.0113688,87962.0,87952.0,0.20637]
[1765811261501,0.0113653,87989.0,87967.0,0.011368]
[1765811261801,0.0113656,87986.0,87982.0,0.0113661]
[1765811261992,0.08,87986.0,87982.0,0.0113661]
[1765811262189,0.0113624,88011.0,88004.0,0.0113632]
[1765811262498,0.0113631,88006.0,87999.0,0.0113639]
[1765811262701,0.18,88006.0,88003.0,0.0113633]
[1765811262901,3.86e-06,88006.0,88003.0,0.0113633]
[1765811263202,3.86e-06,88010.0,88009.0,0.0113627]
[1765811263400,4.2e-07,88013.0,88006.0,0.74532]
[1765811263603,0.011361,88022.0,88012.0,0.0113623]
[1765811263900,0.0113623,88013.0,88007.0,0.11362409]
[1765811264100,0.0113634,88004.0,87998.0,0.20637]
[1765811264301,0.0113608,88024.0,87998.0,0.20637]
[1765811264499,0.0113608,88024.0,88016.0,0.0113616]
[1765811264500,0.00017042,88020.0,88016.0,0.0113616]
[1765811264705,0.00017042,88020.0,88009.0,0.00017042]
[1765811264891,0.0113546,88072.0,88009.0,0.00017042]
[1765811265203,0.18,88065.0,88032.0,0.20637]
[1765811265404,0.0113565,88057.0,88032.0,0.20637]
[1765811265701,0.16,88057.0,88045.0,0.011358]
[1765811265905,0.16,88057.0,88045.0,1.511358]
[1765811266111,0.16,88057.0,88050.0,0.0113573]
[1765811266599,0.16,88057.0,88050.0,1.5]
[1765811266995,0.16,88057.0,88050.0,1.5113573]
[1765811267196,0.16,88057.0,88050.0,1.5]
[1765811267394,0.16,88057.0,88056.0,0.2177266]
[1765811267597,0.00011247,88060.0,88056.0,0.2177266]
[1765811267807,1.03409329,88080.0,88069.0,0.0113548]
[1765811268002,1.21409329,88080.0,88069.0,0.0113548]
[1765811268303,1.21385332,88080.0,88069.0,0.0113548]
[1765811268504,1.21385332,88080.0,88056.0,0.20637]
[1765811268505,0.0113556,88064.0,88056.0,0.20637]
[1765811268706,1.02249982,88080.0,88057.0,0.74568]
[1765811268907,1.02249982,88080.0,88060.0,0.00017032]
[1765811268908,1.20249982,88080.0,88060.0,0.00017032]
[1765811269099,0.0113559,88062.0,88060.0,0.00017032]
[1765811269299,0.0113545,88073.0,88060.0,0.00017032]
[1765811269504,0.2013545,88073.0,88061.0,0.0113559]
[1765811269705,0.0113549,88069.0,88060.0,0.00017032]
[1765811269907,0.15,88069.0,88064.0,0.0113555]
[1765811270101,0.15,88069.0,88068.0,0.3608]
[1765811270407,0.48249982,88080.0,88075.0,0.0113541]
[1765811270713,0.0113513,88098.0,88087.0,0.0113525]
[1765811270909,0.0113513,88097.0,88094.0,0.3608]
[1765811271210,0.19,88097.0,88095.0,0.0113516]
[1765811271508,0.19,88097.0,88096.0,0.3608]
[1765811272014,0.14292,88113.0,88096.0,0.3608]
[1765811272309,0.14292,88113.0,88109.0,0.3608]
[1765811272310,0.3542693,88113.0,88109.0,0.3608]
[1765811272513,0.0113498,88109.0,88102.0,0.00017032]
[1765811272702,0.18,88109.0,88107.0,0.3608]
[1765811272902,0.0113499,88108.0,88107.0,0.3608]
[1765811273107,0.0113505,88103.0,88102.0,0.00017032]
[1765811273310,0.11,88103.0,88102.0,0.00017032]
[1765811273615,0.10976004,88103.0,88102.0,0.11367061]
[1765811273813,0.14292,88113.0,88102.0,0.11367061]
[1765811274019,0.14292,88113.0,88112.0,0.3721494]
[1765811274020,0.22292,88113.0,88112.0,0.3721494]
[1765811274310,0.22292,88113.0,88112.0,0.3608]
[1765811274705,0.08,88113.0,88112.0,0.47430415]
[1765811275503,0.15523,88128.0,88124.0,0.0113477]
[1765811275809,0.15523,88128.0,88127.0,0.3608]
[1765811275810,0.32523,88128.0,88127.0,0.3608]
[1765811276112,0.32523,88128.0,88127.0,0.72888]
[1765811276414,0.32523,88128.0,88127.0,0.7402274]
[1765811276601,0.32523,88128.0,88127.0,0.85370128]
[1765811276802,0.32523,88128.0,88127.0,0.3608]
[1765811277805,0.17,88128.0,88127.0,0.87711195]
[1765811278008,0.27,88142.0,88141.0,0.0113456]
[1765811278009,0.16,88142.0,88141.0,0.0113456]
[1765811278213,0.17,88142.0,88141.0,0.3721456]
[1765811278408,0.17,88142.0,88141.0,0.3608]
[1765811278609,0.17,88142.0,88141.0,0.40284]
[1765811278809,0.04,88142.0,88141.0,0.68614394]
[1765811279013,0.1225,88152.0,88147.0,0.0113447]
[1765811279209,0.11,88152.0,88151.0,0.40284]
[1765811279405,0.3608,88184.0,88151.0,0.8329443]
[1765811279704,0.3974912,88176.0,88172.0,0.3608]
[1765811279905,0.38615,88176.0,88171.0,0.3608]
[1765811280114,0.0113413,88175.0,88171.0,0.3608]
[1765811280318,0.0113414,88174.0,88171.0,0.3608]
[1765811280613,0.011343,88162.0,88159.0,0.3608]
[1765811280814,0.0113437,88156.0,88155.0,0.00017022]
[1765811281017,0.01,88156.0,88155.0,0.00017022]
[1765811281214,0.56695,88176.0,88155.0,0.00017022]
[1765811281215,0.20615,88176.0,88175.0,0.0113413]
[1765811281513,0.37615,88176.0,88175.0,0.3721413]
[1765811281814,0.02007944,88196.0,88175.0,1.00436743]
[1765811281815,0.20949,88182.0,88175.0,1.00436743]
[1765811282015,0.011341,88178.0,88173.0,0.49944]
[1765811282320,0.09874084,88196.0,88193.0,0.0113389]
[1765811282321,0.00874084,88196.0,88193.0,0.0113389]
[1765811282505,0.18874084,88196.0,88193.0,0.0113389]
[1765811282812,0.05874084,88196.0,88195.0,0.0113387]
[1765811283116,0.05874084,88196.0,88179.0,0.0113407]
[1765811283117,0.20949,88182.0,88175.0,0.46988]
[1765811283309,0.20949,88182.0,88179.0,0.0113406]
[1765811283514,0.20949,88182.0,88181.0,0.11338575]
[1765811283709,0.20949,88182.0,88172.0,0.00011776]
[1765811284014,0.20949,88182.0,88140.0,0.01502376]
[1765811284015,0.0113415,88173.0,88140.0,0.01502376]
[1765811284219,0.20949,88159.0,88141.0,2.12964]
[1765811284515,0.20949,88159.0,88155.0,0.0113438]
[1765811285016,0.00011464,88158.0,88140.0,0.01550063]
[1765811285205,0.05011464,88158.0,88142.0,0.0113454]
[1765811285403,0.00011464,88158.0,88155.0,0.0113438]
[1765811285612,0.00011464,88158.0,88141.0,0.74292]
[1765811285807,0.00011464,88158.0,88154.0,0.0113439]
[1765811286014,0.00011464,88158.0,88157.0,0.3608]
[1765811286219,0.19011464,88158.0,88157.0,0.3608]
[1765811286403,0.00011464,88158.0,88157.0,0.3608]
[1765811286813,0.00011464,88158.0,88157.0,0.6432576]
[1765811287713,0.00011464,88158.0,88157.0,1.3860576]
[1765811288309,0.0001691,88166.0,88165.0,0.0113425]
[1765811288510,0.0001691,88166.0,88165.0,1.1149425]
[1765811288814,0.0001691,88166.0,88165.0,1.28606194]
[1765811289009,0.0001691,88166.0,88165.0,1.39949528]
[1765811289413,0.0001691,88166.0,88165.0,0.65669528]
[1765811289822,0.0001691,88166.0,88165.0,2.81785528]
[1765811290023,0.0001691,88166.0,88165.0,2.81781528]
[1765811290516,0.0001691,88166.0,88165.0,1.39937528]
[1765811290911,0.7009291,88166.0,88165.0,0.47423334]
[1765811291114,0.0001691,88166.0,88163.0,0.0113428]
[1765811291319,0.0001691,88166.0,88165.0,0.64715854]
[1765811291621,1e-07,88166.0,88165.0,0.36328]
[1765811291827,0.0113425,88166.0,88165.0,1.38902466]
[1765811292012,0.7121025,88166.0,88165.0,0.002]
[1765811292216,0.8821025,88166.0,88165.0,0.3608]
[1765811292516,0.8821025,88166.0,88139.0,0.02873865]
[1765811292517,0.35345,88143.0,88139.0,0.02873865]
[1765811292722,0.3608,88151.0,88142.0,0.7426]
[1765811292921,0.0113454,88143.0,88142.0,0.7426]
[1765811293313,0.0113441,88153.0,88146.0,0.0113449]
[1765811293519,0.20649,88154.0,88152.0,0.0113442]
[1765811293724,0.3608001,88166.0,88163.0,0.0113427]
[1765811293909,0.3608001,88166.0,88165.0,0.0113425]
[1765811293910,0.0800001,88166.0,88165.0,0.0113425]
[1765811294422,0.0800001,88166.0,88164.0,0.7539027]
[1765811294618,0.07976014,88166.0,88164.0,0.7539027]
[1765811294820,0.0113398,88187.0,88168.0,0.0113421]
[1765811295020,0.0113401,88184.0,88178.0,0.0113408]
[1765811295227,0.0113401,88184.0,88170.0,0.0113419]
[1765811295228,0.20949,88176.0,88170.0,0.0113419]
[1765811295418,0.011343,88162.0,88159.0,0.02806582]
[1765811295726,0.011343,88162.0,88152.0,0.00017012]
[1765811295727,0.0113438,88155.0,88152.0,0.00017012]
[1765811295920,0.2113438,88155.0,88152.0,0.00017012]
[1765811296225,0.2113438,88155.0,88141.0,0.28325863]
[1765811296226,0.0113455,88142.0,88141.0,0.28325863]
[1765811296422,0.2208363,88136.0,88134.0,0.0001375]
[1765811296624,0.2208363,88136.0,88100.0,0.34716354]
[1765811296625,0.0113464,88135.0,88100.0,0.34716354]
[1765811296818,0.0113464,88135.0,88090.0,1.41812]
[1765811296819,0.0113488,88117.0,88108.0,0.0113498]
[1765811297014,0.20949,88136.0,88118.0,0.0113485]
[1765811297214,0.20949,88136.0,88106.0,0.01476128]
[1765811297215,0.0113488,88117.0,88106.0,0.01476128]
[1765811297416,0.1813488,88117.0,88111.0,0.0113494]
[1765811297613,0.20966022,88136.0,88103.0,0.00017022]
[1765811297614,0.00014062,88116.0,88107.0,0.1134623]
[1765811297818,0.19014062,88116.0,88115.0,0.011349]
[1765811298014,0.00014062,88116.0,88115.0,0.011349]
[1765811298223,0.00014062,88116.0,88106.0,0.3754167]
[1765811298224,0.00017022,88123.0,88118.0,0.0113485]
[1765811298423,0.00017022,88123.0,88106.0,0.0146167]
[1765811298624,0.00017022,88123.0,88115.0,0.11349256]
[1765811298824,0.00017022,88123.0,88119.0,0.0113484]
[1765811299315,0.00017022,88123.0,88115.0,0.3608]
[1765811299516,0.0113486,88118.0,88115.0,0.3608]
[1765811299811,0.0113486,88118.0,88108.0,6.8e-07]
[1765811299812,0.0113498,88109.0,88108.0,6.8e-07]
[1765811300015,0.5721498,88109.0,88103.0,0.00017022]
[1765811300211,0.3608,88105.0,88103.0,0.00017022]
[1765811300419,0.0113504,88104.0,88103.0,0.00017022]
[1765811300620,0.4208404,88104.0,88103.0,0.00017022]
[1765811300831,0.0113519,88092.0,88091.0,8.56e-05]
[1765811301121,0.552152,88092.0,88078.0,0.0113536]
[1765811301315,0.0113525,88088.0,88071.0,0.3608]
[1765811301512,0.1913525,88088.0,88071.0,0.01468191]
[1765811301714,0.1913525,88088.0,88070.0,0.0113547]
[1765811301921,0.1913525,88088.0,88063.0,0.3608]
[1765811301922,0.0113536,88079.0,88078.0,0.00017022]
[1765811302127,0.5408,88079.0,88078.0,0.00017022]
[1765811302326,0.5308,88079.0,88078.0,0.00017022]
[1765811302621,0.9308,88079.0,88078.0,0.00017022]
[1765811302825,0.04,88079.0,88078.0,0.01152402]
[1765811303022,8.56e-05,88087.0,88083.0,0.011353]
[1765811303223,8.56e-05,88087.0,88085.0,0.0113528]
[1765811303425,8.56e-05,88087.0,88086.0,0.3608]
[1765811303622,8.56e-05,88087.0,88086.0,0.17080256]
[1765811304123,8.56e-05,88087.0,88086.0,0.28432733]
[1765811304424,0.3608,88104.0,88095.0,0.0113516]
[1765811304629,0.3608,88112.0,88095.0,0.0113516]
[1765811304630,0.02002914,88096.0,88095.0,0.0113516]
[1765811304825,2.914e-05,88096.0,88095.0,0.18169115]
[1765811305016,2.914e-05,88096.0,88095.0,0.29520432]
[1765811305215,2.914e-05,88096.0,88095.0,1.03788432]
[1765811306023,2.914e-05,88096.0,88095.0,0.92437115]
[1765811306217,2.914e-05,88096.0,88095.0,1.39868432]
[1765811306419,0.19002914,88096.0,88095.0,1.39868432]
[1765811306623,2.914e-05,88096.0,88095.0,1.39868432]
[1765811306927,0.19002914,88096.0,88095.0,0.64465272]
[1765811307127,0.19002914,88096.0,88087.0,0.3608]
[1765811307128,2.914e-05,88096.0,88094.0,0.0113516]
[1765811307323,0.20002914,88096.0,88095.0,0.3608]
[1765811307813,0.20002914,88096.0,88094.0,0.0113516]
[1765811308016,2.914e-05,88096.0,88094.0,0.0113516]
[1765811308216,0.20002914,88096.0,88094.0,0.0113516]
[1765811308419,0.21138054,88096.0,88095.0,0.002]
[1765811308620,0.20002914,88096.0,88095.0,0.002]
[1765811310428,0.1966,88080.0,88078.0,0.01152402]
[1765811310619,0.7587536,88080.0,88078.0,0.00017022]
[1765811310819,0.7587536,88080.0,88057.0,0.02884379]
[1765811310820,0.0113557,88064.0,88061.0,0.64052]
[1765811311021,0.0113557,88064.0,88057.0,9.541e-05]
[1765811311022,0.0113563,88058.0,88057.0,9.541e-05]
[1765811311232,0.2,88058.0,88057.0,9.541e-05]
[1765811311428,0.2113563,88058.0,88057.0,9.541e-05]
[1765811311835,0.0113574,88050.0,88049.0,0.00017031]
[1765811312131,0.5508,88050.0,88026.0,0.17051552]
[1765811312327,0.0113575,88049.0,88040.0,0.15478469]
[1765811312528,0.0113579,88046.0,88040.0,0.0113586]
[1765811312716,0.3608,88041.0,88029.0,0.3608]
[1765811312921,0.3608,88041.0,88039.0,0.0113587]
[1765811313130,0.00017031,88044.0,88043.0,0.0113583]
[1765811313430,0.00017031,88044.0,88031.0,0.11358086]
[1765811313431,0.20961,88032.0,88029.0,0.01136]
[1765811313622,0.37961,88032.0,88026.0,0.00017031]
[1765811313820,0.20961,88032.0,88030.0,0.0113599]
[1765811314324,0.0113603,88028.0,88026.0,0.00017031]
[1765811314634,0.1913603,88028.0,88026.0,0.00017031]
[1765811315533,0.3608,88027.0,88026.0,0.00017031]
[1765811315828,0.0113619,88015.0,88004.0,0.2928]
[1765811316036,0.3721621,88013.0,88005.0,0.0113631]
[1765811316226,0.5508,88013.0,88012.0,0.01145415]
[1765811316428,0.5508,88013.0,88012.0,9.185e-05]
[1765811316628,0.3608,88013.0,88012.0,9.185e-05]
[1765811316823,0.5208,88013.0,88012.0,1.85e-06]
[1765811317022,0.20961,88008.0,88004.0,0.00017042]
[1765811317225,0.20961,88008.0,88005.0,0.0113632]
[1765811317523,0.37961,88008.0,88005.0,0.0113632]
[1765811317828,0.3608,88013.0,88011.0,0.0113623]
[1765811318029,8.528e-05,88014.0,88011.0,0.0113623]
[1765811318734,8.528e-05,88014.0,88009.0,0.0113626]
[1765811318934,8.528e-05,88014.0,88013.0,0.0113621]
[1765811319133,8.528e-05,88014.0,88006.0,0.42444]
[1765811319332,8.528e-05,88014.0,88005.0,0.001]
[1765811319532,8.528e-05,88014.0,88006.0,0.011363]
[1765811319735,0.0113621,88013.0,88006.0,0.011363]
[1765811320032,0.0113621,88013.0,88005.0,0.001]
[1765811320033,0.011363,88006.0,88005.0,0.001]
[1765811320428,0.191363,88006.0,88005.0,0.001]
[1765811320828,0.191363,88006.0,88004.0,0.00017042]
[1765811321228,0.0113648,87993.0,87990.0,0.3721651]
[1765811321525,0.0113654,87988.0,87987.0,0.00011308]
[1765811321830,0.3608,87996.0,87987.0,0.00011308]
[1765811321831,0.3608,87996.0,87993.0,0.0113646]
[1765811322734,0.5408,87996.0,87993.0,0.0113646]
[1765811323135,0.5408,87996.0,87989.0,0.3608]
[1765811323136,0.20961,87998.0,87997.0,0.0113642]
[1765811323436,0.37961,87998.0,87997.0,0.0113642]
[1765811323734,0.35922,87996.0,87995.0,0.0113643]
[1765811323939,0.52922,87996.0,87995.0,0.0113643]
[1765811324245,0.35922,87996.0,87995.0,0.0113643]
[1765811324833,0.53922,87996.0,87995.0,0.0113643]
[1765811325028,0.53922,87996.0,87987.0,0.00011308]
[1765811325029,0.70943,87988.0,87987.0,0.00011308]
[1765811325336,1.24023,87988.0,87987.0,0.00011308]
[1765811325733,0.7207955,87987.0,87986.0,0.00017042]